fUST/lending_fUST_20250715
["ID","MTS","AMOUNT","RATE_DAILY","PERIOD"]
[372266697,1752568281507,-2572.3,0.00022739,2]
[372266698,1752568281517,-460.0,0.00022739,2]
[372266699,1752568281527,-460.0,0.00022739,2]
[372266700,1752568281536,-518.31,0.00022739,2]
[372266701,1752568281546,-460.0,0.00022739,2]
[372266702,1752568281556,-1848.23,0.00022739,2]
[372266703,1752568281565,-477.88,0.00022739,2]
[372266704,1752568281574,-922.11,0.00022739,2]
[372266705,1752568281583,-7815.44,0.00022739,2]
[372266706,1752568281593,-1098.55,0.00022739,2]
[372266707,1752568281602,-12039.6221253,0.00022762,7]
[372266708,1752568281612,-3007.57266618,0.00022808,2]
[372266709,1752568281621,-500.0,0.00022835,2]
[372266710,1752568281630,-151.0,0.00022855,7]
[372266711,1752568281640,-1956.55,0.000229,2]
[372266712,1752568281650,-3250.65755655,0.00022952,2]
[372266713,1752568281659,-865.86894857,0.00022952,2]
[372266714,1752568281669,-168.0,0.00022963,2]
[372266715,1752568281678,-660.0,0.00022998,2]
[372266716,1752568281688,-160.0,0.00023,3]
[372266717,1752568281697,-160.0,0.00023,3]
[372266718,1752568281707,-838.84061749,0.00023,3]
[372266719,1752568281716,-525.51022752,0.00023,3]
[372266720,1752568281726,-230.76969291,0.00023,3]
[372266721,1752568281735,-160.0,0.00023,3]
[372266722,1752568281745,-160.0,0.00023,3]
[372266723,1752568281754,-215.50840239,0.00023,3]
[372266724,1752568281764,-12039.6221253,0.00023003,8]
[372266725,1752568281773,-460.0,0.00023013,2]
[372266726,1752568281783,-610.125495,0.00023013,7]
[372266727,1752568281793,-610.125495,0.00023013,7]
[372266728,1752568281803,-474.04,0.00023013,2]
[372266729,1752568281812,-305.70128678,0.00023013,2]
[372266730,1752568281822,-460.0,0.00023013,2]
[372266731,1752568281832,-945.03,0.00023013,2]
[372266732,1752568281842,-460.0,0.00023013,2]
[372266733,1752568281851,-641.07,0.00023013,2]
[372266734,1752568281943,-460.0,0.00023013,2]
[372266735,1752568281952,-460.0,0.00023013,2]
[372266736,1752568281962,-542.44,0.00023013,2]
[372266737,1752568281974,-460.0,0.00023013,2]
[372266738,1752568281983,-460.0,0.00023013,2]
[372266739,1752568281993,-517.74,0.00023013,2]
[372266740,1752568282006,-777.99,0.00023013,2]
[372266741,1752568282016,-592.01,0.00023013,2]
[372266742,1752568282026,-1000.75,0.00023013,2]
[372266743,1752568282035,-460.0,0.00023013,2]
[372266744,1752568282046,-906.02,0.00023013,2]
[372266745,1752568282055,-478.18,0.00023013,2]
[372266746,1752568282065,-460.0,0.00023013,2]
[372266747,1752568282075,-460.0,0.00023013,2]
[372266748,1752568282084,-151.0,0.00023013,7]
[372266749,1752568282094,-501.02,0.00023013,2]
[372266750,1752568282104,-460.0,0.00023013,2]
[372266751,1752568282113,-460.0,0.00023013,2]
[372266752,1752568282123,-1045.04,0.00023013,2]
[372266753,1752568282134,-479.16,0.00023013,2]
[372266754,1752568282144,-797.85,0.00023013,2]
[372266755,1752568282153,-1013.19,0.00023013,2]
[372266756,1752568282163,-460.0,0.00023013,2]
[372266757,1752568282172,-2728.73,0.00023013,2]
[372266758,1752568282182,-496.29,0.00023013,2]
[372266759,1752568282191,-1064.98,0.00023013,2]
[372266760,1752568282200,-460.0,0.00023013,2]
[372266761,1752568282210,-791.68,0.00023013,2]
[372266762,1752568282219,-460.0,0.00023013,2]
[372266763,1752568282229,-566.25,0.00023013,2]
[372266764,1752568282239,-460.0,0.00023013,2]
[372266765,1752568282248,-460.0,0.00023013,2]
[372266766,1752568282257,-460.0,0.00023013,2]
[372266767,1752568282267,-727.92,0.00023013,2]
[372266768,1752568282277,-667.4,0.00023013,2]
[372266769,1752568282287,-7923.04,0.00023013,2]
[372266770,1752568282297,-1767.68,0.00023013,2]
[372266771,1752568282307,-1795.0,0.00023013,2]
[372266772,1752568282316,-7077.23,0.00023013,2]
[372266773,1752568282326,-2005.5,0.00023013,2]
[372266774,1752568282335,-237.4209502,0.00023013,2]
[372266775,1752568282345,-460.0,0.00023013,2]
[372266776,1752568282355,-154.38994801,0.00023013,2]
[372266777,1752568282365,-460.0,0.00023013,2]
[372266778,1752568282375,-1108.93,0.00023013,2]
[372266779,1752568282385,-368.23,0.00023013,2]
[372266780,1752568282394,-2528.48,0.00023013,2]
[372266781,1752568282403,-649.45,0.00023013,2]
[372266782,1752568282413,-5262.85,0.00023013,2]
[372266783,1752568282423,-460.0,0.00023013,2]
[372266784,1752568282432,-516.15,0.00023013,2]
[372266786,1752568282441,-509.44,0.00023013,2]
[372266787,1752568282450,-460.0,0.00023013,2]
[372266788,1752568282459,-935.3,0.00023013,2]
[372266789,1752568282469,-460.0,0.00023013,2]
[372266790,1752568282481,-1072.07,0.00023013,2]
[372266791,1752568282491,-460.0,0.00023013,2]
[372266792,1752568282501,-962.23,0.00023013,2]
[372266793,1752568282510,-460.0,0.00023013,2]
[372266794,1752568282520,-1205.09,0.00023013,2]
[372266795,1752568282529,-8553.46,0.00023013,2]
[372266796,1752568282539,-2434.39,0.00023013,2]
[372266797,1752568282548,-460.0,0.00023013,2]
[372266798,1752568282558,-865.81,0.00023013,2]
[372266799,1752568282568,-592.14,0.00023013,2]
[372266800,1752568282578,-460.0,0.00023013,2]
[372266801,1752568282587,-4180.58,0.00023013,2]
[372266802,1752568282597,-924.63,0.00023013,2]
[372266803,1752568282606,-616.25,0.00023013,2]
[372266804,1752568282616,-1533.03,0.00023013,2]
[372266805,1752568282626,-688.33,0.00023013,2]
[372266806,1752568282635,-648.63,0.00023013,2]
[372266807,1752568282648,-966.64,0.00023013,2]
[372266808,1752568282669,-886.34,0.00023013,2]
[372266809,1752568282686,-1951.24,0.00023013,2]
[372266810,1752568282706,-210.121863,0.00023013,7]
[372266811,1752568282726,-689.19,0.00023013,2]
[372266812,1752568282747,-210.121863,0.00023013,7]
[372266813,1752568282763,-460.0,0.00023013,2]
[372266814,1752568282783,-460.0,0.00023013,2]
[372266815,1752568282797,-460.0,0.00023013,2]
[372266816,1752568282815,-2572.3,0.00023013,2]
[372266817,1752568282835,-460.0,0.00023013,2]
[372266818,1752568282853,-273.05601069,0.00023013,2]
[372266819,1752568282868,-518.31,0.00023013,2]
[372266820,1752568282887,-460.0,0.00023013,2]
[372266821,1752568282902,-1848.23,0.00023013,2]
[372266822,1752568282917,-477.88,0.00023013,2]
[372266823,1752568282934,-922.11,0.00023013,2]
[372266824,1752568282948,-7815.44,0.00023013,2]
[372266825,1752568282962,-1098.55,0.00023013,2]
[372266826,1752568282977,-500.0,0.00023108,2]
[372266827,1752568282991,-151.0,0.00023176,7]
[372266828,1752568283005,-68538.66726213,0.00023177,2]
[372266830,1752568283769,-460.0,0.00019178,2]
[372266831,1752568283779,-220.8,0.00019484,2]
[372266832,1752568283789,-151.0,0.00019936,2]
[372266833,1752568283798,-151.0,0.00019936,2]
[372266834,1752568283808,-3651.67,0.00020547,2]
[372266835,1752568283817,-3079.94512,0.00020821,2]
[372266836,1752568283829,-571.72488,0.00020821,2]
[372266837,1752568283839,-220.8,0.00021087,2]
[372266838,1752568283848,-1161.48512,0.00021095,2]
[372266839,1752568284038,-460.0,0.00019178,2]
[372266840,1752568284048,-460.0,0.00019178,2]
[372266841,1752568284058,-460.0,0.00019178,2]
[372266842,1752568284067,-460.0,0.00019178,2]
[372266843,1752568284077,-460.0,0.00019452,2]
[372266844,1752568284087,-460.0,0.00019452,2]
[372266845,1752568284096,-460.0,0.00019726,2]
[372266846,1752568284107,-499.84241935,0.0002,2]
[372266847,1752568284116,-2490.18488,0.00021095,2]
[372266848,1752568284126,-3398.85487676,0.00021369,2]
[372266850,1752568284137,-252.81512324,0.00021369,2]
[372266851,1752568284147,-3651.67,0.00021643,2]
[372266852,1752568284158,-281.82270609,0.00021917,2]
[372266853,1752568284167,-3651.67,0.00021917,2]
[372266854,1752568284177,-220.8,0.00022174,2]
[372266855,1752568284186,-3651.67,0.00022191,2]
[372266856,1752568284197,-3651.67,0.00022465,2]
[372266857,1752568284207,-600.27,0.00022739,2]
[372266858,1752568284216,-3651.67,0.00022739,2]
[372266859,1752568284227,-600.27,0.00023013,2]
[372266860,1752568284237,-3651.67,0.00023013,2]
[372266861,1752568284248,-81461.33273787,0.00023177,2]
[372266862,1752568284258,-11436.22970699,0.00023177,2]
[372266863,1752568284269,-48583.59305105,0.00023177,2]
[372266864,1752568284280,-3525.30862851,0.00023177,2]
[372266865,1752568284373,-460.0,0.00019452,2]
[372266866,1752568284382,-151.0,0.00019507,2]
[372266867,1752568284391,-460.0,0.00019726,2]
[372266868,1752568284401,-151.0,0.00019726,2]
[372266869,1752568284409,-460.0,0.0002,2]
[372266870,1752568284418,-151.0,0.0002,2]
[372266871,1752568284428,-460.0,0.00020273,2]
[372266872,1752568284437,-456.07668683,0.00020547,2]
[372266873,1752568284446,-29913.43411214,0.00023177,2]
[372266874,1752568284459,-15495.30166854,0.00023177,2]
[372266879,1752568294511,-1492.32611296,0.00025518,30]
[372266880,1752568294536,-628.00966827,0.00025518,30]
[372266881,1752568294561,-1842.00517895,0.00025518,30]
[372266882,1752568294586,-1509.02971927,0.00025518,30]
[372266883,1752568294611,-1185.29803665,0.00025518,30]
[372266884,1752568294635,-244.3938768,0.00025518,30]
[372266885,1752568294660,-670.0,0.00025518,30]
[372266886,1752568294684,-39655.0,0.00025518,30]
[372266887,1752568294712,-5178.0720478,0.00025518,30]
[372266888,1752568294738,-6143.7368562,0.00025518,30]
[372266889,1752568294763,-17908.6748373,0.00025518,30]
[372266890,1752568294788,-34632.8463768,0.00025518,30]
[372266891,1752568294813,-646898.70855153,0.00025518,30]
[372266892,1752568294837,-29883.9264654,0.00025518,30]
[372266893,1752568294861,-30433.2859948,0.00025518,30]
[372266894,1752568294886,-100000.0,0.00025518,30]
[372266895,1752568294914,-100000.0,0.00025518,30]
[372266896,1752568294939,-100000.0,0.00025518,30]
[372266897,1752568294963,-10070.69687967,0.00025518,31]
[372266898,1752568294990,-510288.51511085,0.00025518,32]
[372266899,1752568295017,-75254.0,0.00025518,32]
[372266900,1752568295042,-5081.58276723,0.00025518,30]
[372266901,1752568295070,-2102.76146397,0.00025518,30]
[372266902,1752568295095,-19032.15227218,0.00025518,30]
[372266903,1752568295120,-41295.47007946,0.00025518,30]
[372266904,1752568295146,-2000.0,0.00025518,30]
[372266905,1752568295171,-2000.0,0.00025518,30]
[372266906,1752568295325,-2000.0,0.00025518,30]
[372266907,1752568295357,-2000.0,0.00025518,30]
[372266908,1752568295383,-210569.50770391,0.00025518,30]
[372266909,1752568317649,-1575336.16822801,0.00025518,30]
[372266910,1752568317678,-6530.0,0.00025518,32]
[372266911,1752568317705,-2000.0,0.00025518,30]
[372266912,1752568317729,-2000.0,0.00025518,30]
[372266913,1752568317752,-2000.0,0.00025518,30]
[372266914,1752568317775,-2000.0,0.00025518,30]
[372266915,1752568317799,-1012.5,0.00025518,30]
[372266916,1752568317822,-1012.5,0.00025518,30]
[372266917,1752568317847,-1012.5,0.00025518,30]
[372266918,1752568317871,-1012.5,0.00025518,30]
[372266919,1752568317896,-98384.26539811,0.00025518,30]
[372266927,1752568349191,589.0,0.00023003,120]
[372266930,1752568349655,589.0,0.00022993,120]
[372266932,1752568350122,589.0,0.00022983,120]
[372266935,1752568352975,589.0,0.0002448,120]
[372266936,1752568353442,589.0,0.0002447,120]
[372266938,1752568355080,589.0,0.0002446,120]
[372266939,1752568355530,589.0,0.00024888,120]
[372266941,1752568355994,589.0,0.00024878,120]
[372266942,1752568356481,589.0,0.00025508,120]
[372266943,1752568356947,589.35,0.00025498,120]
[372266963,1752568385265,500.0,0.00024518,120]
[372266964,1752568386057,500.0,0.00024518,120]
[372266965,1752568386850,500.0,0.00024518,120]
[372266966,1752568387647,500.0,0.00024518,120]
[372266967,1752568388443,500.0,0.00024518,120]
[372266968,1752568389238,525.71,0.00024518,120]
[372266969,1752568411187,200.0,0.00026106,120]
[372266970,1752568424051,182.00824304,0.00027397,120]
[372266972,1752568450191,210.7407178,0.00025511,120]
[372266973,1752568455995,500.0,0.00024518,120]
[372266974,1752568456777,500.0,0.00024518,120]
[372266975,1752568457559,500.0,0.00024518,120]
[372266976,1752568458336,500.0,0.00024518,120]
[372266977,1752568459117,500.0,0.00024518,120]
[372266978,1752568459976,500.0,0.00024518,120]
[372266979,1752568460743,500.0,0.00024518,120]
[372266980,1752568461511,500.0,0.00024518,120]
[372266981,1752568462300,500.0,0.00024518,120]
[372266982,1752568463063,500.0,0.00024518,120]
[372266983,1752568463833,500.0,0.00024518,120]
[372266984,1752568464611,500.0,0.00024518,120]
[372266985,1752568465390,500.0,0.00024518,120]
[372266986,1752568466248,500.0,0.00024518,120]
[372266987,1752568466935,500.0,0.00024518,120]
[372266988,1752568467703,500.0,0.00024518,120]
[372266989,1752568468639,150.5,0.0002191,120]
[372266990,1752568469005,500.0,0.00024518,120]
[372266991,1752568469753,240.21,0.000219,120]
[372266992,1752568469976,500.0,0.00024518,120]
[372266993,1752568470750,500.0,0.00024518,120]
[372266994,1752568471114,200.0,0.00024955,120]
[372266995,1752568471521,500.0,0.00024518,120]
[372266996,1752568472307,500.0,0.00024518,120]
[372266997,1752568473146,500.0,0.00024518,120]
[372266998,1752568473928,500.0,0.00024518,120]
[372266999,1752568474469,500.0,0.00017688,2]
[372267000,1752568475015,500.0,0.00024518,120]
[372267001,1752568475784,500.0,0.00024518,120]
[372267002,1752568476556,500.0,0.00024518,120]
[372267003,1752568477326,500.0,0.00024518,120]
[372267004,1752568478120,500.0,0.00024518,120]
[372267005,1752568478905,500.0,0.00024518,120]
[372267006,1752568479683,500.0,0.00024518,120]
[372267007,1752568480450,500.0,0.00024518,120]
[372267008,1752568481221,500.0,0.00024518,120]
[372267009,1752568482385,500.0,0.00024518,120]
[372267010,1752568483231,500.0,0.00024518,120]
[372267011,1752568484002,500.0,0.00024518,120]
[372267012,1752568484778,500.0,0.00024518,120]
[372267013,1752568487062,500.0,0.00024518,120]
[372267014,1752568487956,500.0,0.00024518,120]
[372267015,1752568488794,500.0,0.00024518,120]
[372267016,1752568489582,500.0,0.00024518,120]
[372267017,1752568490355,500.0,0.00024518,120]
[372267018,1752568491180,500.0,0.00024518,120]
[372267019,1752568497975,500.0,0.00024518,120]
[372267020,1752568498936,500.0,0.00024518,120]
[372267021,1752568499787,500.0,0.00024518,120]
[372267022,1752568500567,500.0,0.00024518,120]
[372267023,1752568502013,500.0,0.00024518,120]
[372267024,1752568502841,500.0,0.00024518,120]
[372267029,1752568503623,500.0,0.00024518,120]
[372267030,1752568504400,500.0,0.00024518,120]
[372267031,1752568505172,500.0,0.00024518,120]
[372267032,1752568505978,173.0,0.00024,120]
[372267033,1752568507348,173.0,0.000251,120]
[372267034,1752568507425,500.0,0.00024518,120]
[372267035,1752568508329,500.0,0.00024518,120]
[372267036,1752568509095,173.0,0.000262,120]
[372267037,1752568509127,500.0,0.00024518,120]
[372267038,1752568509983,500.0,0.00024518,120]
[372267039,1752568510500,173.0,0.000273,120]
[372267040,1752568510799,500.0,0.00024518,120]
[372267041,1752568511681,500.0,0.00024518,120]
[372267042,1752568512636,500.0,0.00024518,120]
[372267043,1752568513464,500.0,0.00024518,120]
[372267044,1752568514299,500.0,0.00024518,120]
[372267045,1752568515092,500.0,0.00024518,120]
[372267046,1752568515859,500.0,0.00024518,120]
[372267047,1752568516646,500.0,0.00024518,120]
[372267048,1752568517456,500.0,0.00024518,120]
[372267049,1752568518245,500.0,0.00024518,120]
[372267050,1752568519014,500.0,0.00024518,120]
[372267051,1752568519788,500.0,0.00024518,120]
[372267052,1752568520571,523.67,0.00024518,120]
[372267053,1752568531183,200.0,0.00024919,120]
[372267054,1752568531728,150.0,0.00015898,2]
[372267055,1752568532198,212.73,0.00016655,2]
[372267056,1752568532600,319.1,0.00017412,2]
[372267058,1752568562808,222.0,0.00025511,60]
[372267059,1752568585884,500.0,0.00024518,120]
[372267060,1752568586664,500.0,0.00024518,120]
[372267061,1752568587423,500.0,0.00024518,120]
[372267062,1752568588107,150.5,0.0002191,120]
[372267063,1752568589246,150.5,0.000219,120]
[372267064,1752568589703,271.58,0.0002189,120]
[372267065,1752568594537,200.0,0.00025044,120]
[372267066,1752568610644,150.0,0.00016104,2]
[372267067,1752568611068,195.38,0.00016871,2]
[372267068,1752568611588,293.07,0.00017638,2]
[372267069,1752568636227,500.0,0.00025511,50]
[372267070,1752568636472,500.0,0.00025511,50]
[372267071,1752568636762,475.97136209,0.00025511,50]
[372267072,1752568643777,283.0,0.00025511,60]
[372267073,1752568651292,200.0,0.00024914,120]
[372267074,1752568671994,166.0,0.00024,120]
[372267075,1752568691563,150.0,0.0001508,2]
[372267076,1752568694434,179.13,0.00015798,2]
[372267077,1752568694943,268.69,0.00016516,2]
[372267078,1752568695859,358.25,0.00017235,2]
[372267080,1752568696287,447.81,0.00017953,2]
[372267082,1752568708202,1954.0,0.0002191,120]
[372267083,1752568708731,1954.0,0.000219,120]
[372267084,1752568709513,1954.0,0.0002189,120]
[372267085,1752568709981,1954.0,0.0002388,120]
[372267086,1752568710433,1954.0,0.0002387,120]
[372267087,1752568710873,1954.0,0.0002386,120]
[372267088,1752568711113,200.0,0.00026643,120]
[372267089,1752568711579,1954.0,0.0002487,120]
[372267090,1752568711760,1954.0,0.0002486,120]
[372267091,1752568712210,1954.0,0.0002549,120]
[372267092,1752568712678,1954.35,0.0002548,120]
[372267093,1752568771417,200.0,0.00026576,120]
[372267094,1752568779298,150.0,0.00016084,2]
[372267095,1752568780234,150.0,0.0001685,2]
[372267096,1752568780666,215.09,0.00017616,2]
[372267099,1752568810840,632.5677157,0.00027397,120]
[372267100,1752568831380,200.0,0.00024361,120]
[372267101,1752568835572,279.47348,0.00027,120]
[372267102,1752568836989,1444.0,0.00026137,120]
[372267105,1752568858532,150.0,0.00016138,2]
[372267106,1752568858953,150.0,0.00016907,2]
[372267107,1752568859555,195.42,0.00017675,2]
[372267111,1752568891940,200.0,0.00025747,120]
[372267112,1752568901702,550.0,0.000273,120]
[372267114,1752568934584,150.0,0.00016387,2]
[372267115,1752568935243,150.0,0.00017167,2]
[372267116,1752568935627,176.5,0.00017948,2]
[372267117,1752568942681,50434.80772086,0.00027397,120]
[372267118,1752568951609,200.0,0.00024347,120]
[372267119,1752568957876,2853.80754049,0.000222,69]
[372267120,1752568962850,2853.80754046,0.000222,69]
[372267121,1752568967853,2853.80754046,0.000222,69]
[372267122,1752568972858,2853.80754046,0.00023677,75]
[372267123,1752569010155,150.0,0.00016599,2]
[372267124,1752569010720,150.0,0.00017389,2]
[372267125,1752569011266,200.0,0.00026003,120]
[372267126,1752569072385,200.0,0.0002588,120]
[372267127,1752569076418,200.0,0.00027397,120]
[372267128,1752569085453,150.0,0.00016732,2]
[372267129,1752569085869,150.0,0.00017529,2]
[372267130,1752569108789,1834.96151,0.00027397,120]
[372267131,1752569116281,502.92667553,0.00017829,2]
[372267133,1752569121716,165.963969,0.00013699,2]
[372267134,1752569131788,200.0,0.00026424,120]
[372267135,1752569159790,-166.2020877,0.00018006,2]
[372267136,1752569159812,-699.86146978,0.00018082,2]
[372267137,1752569162670,150.0,0.00016604,2]
[372267138,1752569163329,150.0,0.00017394,2]
[372267139,1752569191239,200.0,0.00024474,120]
[372267140,1752569229080,-450.0,0.00018082,2]
[372267142,1752569238110,-278.22438177,0.00018082,2]
[372267143,1752569238279,150.0,0.00016675,2]
[372267144,1752569238706,150.0,0.00017469,2]
[372267145,1752569251582,200.0,0.00026643,120]
[372267146,1752569310428,150.0,0.00016616,2]
[372267147,1752569310841,150.0,0.00017407,2]
[372267148,1752569313426,200.0,0.00025353,120]
[372267154,1752569346262,2000.0,0.0001787,120]
[372267155,1752569347139,-2261.74359139,0.00018082,2]
[372267157,1752569383419,150.0,0.00016633,2]
[372267158,1752569383849,150.0,0.00017425,2]
[372267167,1752569432506,-83.98544156,0.00018082,2]
[372267168,1752569432516,-150.0,0.00018185,2]
[372267169,1752569432526,-500.0,0.00018767,2]
[372267170,1752569432535,-534.44540838,0.00018773,2]
[372267171,1752569432545,-206.71,0.00018868,3]
[372267172,1752569432554,-620.18,0.00018868,3]
[372267174,1752569432564,-154.45,0.00018868,2]
[372267176,1752569432573,-1200.0,0.0001887,2]
[372267177,1752569432583,-79.38604781,0.00018871,2]
[372267180,1752569438429,-220.61395219,0.00018871,2]
[372267181,1752569438439,-300.0,0.00018871,2]
[372267182,1752569438448,-1200.0,0.00018871,2]
[372267183,1752569438457,-32346.27407161,0.00018872,2]
[372267184,1752569438466,-500.0,0.00018873,2]
[372267185,1752569438475,-356.65993412,0.00018873,2]
[372267186,1752569438484,-500.0,0.00018873,2]
[372267187,1752569438494,-500.0,0.00018873,2]
[372267188,1752569438502,-500.0,0.00018873,2]
[372267189,1752569438512,-500.0,0.00018873,2]
[372267191,1752569438521,-501.5911219,0.00018873,2]
[372267192,1752569438530,-500.40342061,0.00018873,2]
[372267193,1752569438539,-500.0,0.00018873,2]
[372267194,1752569438548,-500.0,0.00018873,2]
[372267195,1752569438557,-500.0,0.00018873,2]
[372267196,1752569438566,-370000.0,0.00018878,2]
[372267197,1752569438575,-10386.76218053,0.000189,2]
[372267198,1752569438584,-503.17910296,0.00018957,2]
[372267199,1752569438593,-150.0,0.00018989,2]
[372267200,1752569438602,-10386.76218041,0.00019141,2]
[372267201,1752569438612,-500.0,0.00019173,2]
[372267202,1752569438621,-502.34576079,0.00019173,2]
[372267203,1752569438630,-500.0,0.00019173,2]
[372267204,1752569438639,-500.0,0.00019173,2]
[372267205,1752569438648,-500.0,0.00019173,2]
[372267206,1752569438657,-500.0,0.00019173,2]
[372267207,1752569438667,-500.0,0.00019176,2]
[372267208,1752569438677,-453.28280942,0.00019176,2]
[372267209,1752569438686,-500.0,0.00019176,2]
[372267210,1752569438695,-500.0,0.00019176,2]
[372267211,1752569438705,-500.0,0.00019176,2]
[372267212,1752569438715,-502.32014482,0.00019176,2]
[372267213,1752569438731,-504.85600732,0.00019176,2]
[372267214,1752569438741,-500.0,0.00019176,2]
[372267215,1752569438750,-500.0,0.00019176,2]
[372267216,1752569438759,-500.0,0.00019176,2]
[372267217,1752569438768,-500.0,0.00019176,2]
[372267218,1752569438777,-500.0,0.00019176,2]
[372267219,1752569438787,-500.0,0.00019176,2]
[372267220,1752569438796,-167.27369066,0.00019176,2]
[372267221,1752569438805,-500.0,0.00019176,2]
[372267222,1752569438815,-500.0,0.00019176,2]
[372267223,1752569438824,-500.0,0.00019176,2]
[372267224,1752569438833,-500.0,0.00019176,2]
[372267225,1752569438843,-500.0,0.00019176,2]
[372267226,1752569438852,-500.0,0.00019176,2]
[372267227,1752569438862,-500.0,0.00019176,2]
[372267228,1752569438872,-500.0,0.00019176,2]
[372267229,1752569438882,-500.0,0.00019176,2]
[372267230,1752569438891,-500.0,0.00019176,2]
[372267231,1752569438900,-500.0,0.00019176,2]
[372267232,1752569438910,-500.0,0.00019176,2]
[372267233,1752569438920,-500.0,0.00019176,2]
[372267234,1752569438930,-468.69439394,0.00019176,2]
[372267235,1752569438939,-500.0,0.00019176,2]
[372267236,1752569438949,-357.4955089,0.00019176,2]
[372267237,1752569438958,-500.0,0.00019176,2]
[372267238,1752569438968,-610.13314836,0.00019176,2]
[372267239,1752569438978,-500.0,0.00019176,2]
[372267240,1752569438988,-500.0,0.00019176,2]
[372267241,1752569438997,-500.0,0.00019176,2]
[372267242,1752569439008,-500.0,0.00019176,2]
[372267243,1752569439018,-500.0,0.00019176,2]
[372267244,1752569439027,-500.0,0.00019176,2]
[372267245,1752569439037,-500.0,0.00019176,2]
[372267246,1752569439047,-500.0,0.00019176,2]
[372267247,1752569439058,-500.0,0.00019176,2]
[372267248,1752569439067,-500.0,0.00019176,2]
[372267249,1752569439077,-500.0,0.00019176,2]
[372267250,1752569439087,-500.0,0.00019176,2]
[372267251,1752569439096,-500.0,0.00019176,2]
[372267252,1752569439106,-500.0,0.00019176,2]
[372267253,1752569439116,-500.0,0.00019176,2]
[372267254,1752569439125,-500.0,0.00019176,2]
[372267255,1752569439135,-500.0,0.00019176,2]
[372267256,1752569439144,-500.0,0.00019176,2]
[372267257,1752569439161,-500.0,0.00019176,2]
[372267258,1752569439171,-500.0,0.00019176,2]
[372267259,1752569439181,-500.0,0.00019176,2]
[372267260,1752569439191,-232.1903913,0.00019176,2]
[372267261,1752569439201,-500.0,0.00019176,2]
[372267262,1752569439210,-500.0,0.00019176,2]
[372267263,1752569439220,-500.0,0.00019176,2]
[372267264,1752569439229,-306.99262321,0.00019176,2]
[372267265,1752569439239,-500.0,0.00019176,2]
[372267266,1752569439250,-500.0,0.00019176,2]
[372267267,1752569439261,-500.0,0.00019176,2]
[372267268,1752569439271,-500.0,0.00019176,2]
[372267269,1752569439282,-500.0,0.00019177,2]
[372267270,1752569439294,-155.525,0.00019177,2]
[372267271,1752569439303,-460.0,0.00019178,2]
[372267272,1752569439312,-460.0,0.00019178,2]
[372267273,1752569439323,-462.65100743,0.00019178,2]